[Event "Early-Titled-Tuesday-Blitz-March-05-2024"]
[Site "Chess.com"]
[Date "2024.03.05"]
[Round "1"]
[White "rdarruda"]
[Black "DonJuanEGenaro"]
[Result "1-0"]
[WhiteElo "2531"]
[BlackElo "1971"]
[TimeControl "180+1"]
[EndTime "8:05:52 PST"]
[Termination "rdarruda won by resignation"]

1. Nf3 {[%clk 0:02:59.2]} 1... d5 {[%clk 0:02:59]} 2. d4 {[%clk 0:02:59.1]} 2...
Nf6 {[%clk 0:02:57.3]} 3. c4 {[%clk 0:02:58.9]} 3... e6 {[%clk 0:02:56.7]} 4. e3
{[%clk 0:02:59.1]} 4... c5 {[%clk 0:02:55.9]} 5. Nc3 {[%clk 0:02:58.9]} 5... Nc6
{[%clk 0:02:55.3]} 6. cxd5 {[%clk 0:02:58.7]} 6... exd5 {[%clk 0:02:54.2]} 7.
Be2 {[%clk 0:02:58.6]} 7... c4 {[%clk 0:02:51.9]} 8. O-O {[%clk 0:02:57.4]} 8...
Bd6 {[%clk 0:02:51.2]} 9. b3 {[%clk 0:02:55]} 9... cxb3 {[%clk 0:02:45]} 10.
axb3 {[%clk 0:02:54.2]} 10... Bg4 {[%clk 0:02:32.7]} 11. Ba3 {[%clk 0:02:53.5]}
11... h5 {[%clk 0:02:30.2]} 12. Bxd6 {[%clk 0:02:49.7]} 12... Qxd6 {[%clk
0:02:28.7]} 13. h3 {[%clk 0:02:50.2]} 13... Bxf3 {[%clk 0:02:26.9]} 14. Bxf3
{[%clk 0:02:49.5]} 14... g5 {[%clk 0:02:16.9]} 15. g3 {[%clk 0:02:40]} 15... g4
{[%clk 0:02:12.4]} 16. hxg4 {[%clk 0:02:40.9]} 16... h4 {[%clk 0:01:55.8]} 17.
Kg2 {[%clk 0:02:36.9]} 17... hxg3 {[%clk 0:01:49.2]} 18. fxg3 {[%clk 0:02:37.8]}
18... O-O-O {[%clk 0:01:37]} 19. g5 {[%clk 0:02:37]} 19... Nh7 {[%clk
0:01:35.8]} 20. Bxd5 {[%clk 0:02:30.3]} 20... Nxg5 {[%clk 0:01:34.5]} 21. Qg4+
{[%clk 0:02:29.9]} 21... Ne6 {[%clk 0:01:29.3]} 22. Rxf7 {[%clk 0:02:29.1]}
22... Rde8 {[%clk 0:01:04.8]} 23. Bxe6+ {[%clk 0:02:24.5]} 23... Kb8 {[%clk
0:00:32.8]} 24. Bd5 {[%clk 0:02:07.6]} 24... Rxe3 {[%clk 0:00:22.7]} 25. Rc1
{[%clk 0:01:41.4]} 25... Rxc3 {[%clk 0:00:18.6]} 26. Rxc3 {[%clk 0:01:35.3]}
26... Qxd5+ {[%clk 0:00:18.3]} 27. Qf3 {[%clk 0:01:35.8]} 27... Qxd4 {[%clk
0:00:18]} 28. Qf4+ {[%clk 0:01:36.2]} 28... Qxf4 {[%clk 0:00:17.1]} 29. gxf4
{[%clk 0:01:35.6]} 29... a5 {[%clk 0:00:10.2]} 30. Rg3 {[%clk 0:01:30.6]} 30...
Rd8 {[%clk 0:00:05.2]} 31. Rgg7 {[%clk 0:01:28.2]} 1-0

[Event "Early-Titled-Tuesday-Blitz-March-05-2024"]
[Site "Chess.com"]
[Date "2024.03.05"]
[Round "1"]
[White "MaxLeto"]
[Black "BlueWizzard"]
[Result "0-1"]
[WhiteElo "2479"]
[BlackElo "2890"]
[TimeControl "180+1"]
[EndTime "8:05:53 PST"]
[Termination "BlueWizzard won on time"]

1. g4 {[%clk 0:02:44.9]} 1... g6 {[%clk 0:03:00.9]} 2. Bg2 {[%clk 0:02:41.3]}
2... Bg7 {[%clk 0:02:58.9]} 3. d4 {[%clk 0:02:39.1]} 3... e5 {[%clk 0:02:53.9]}
4. dxe5 {[%clk 0:02:38.8]} 4... Nc6 {[%clk 0:02:54.4]} 5. Bxc6 {[%clk
0:02:29.2]} 5... bxc6 {[%clk 0:02:54.3]} 6. Nf3 {[%clk 0:02:29.4]} 6... Qe7
{[%clk 0:02:48.7]} 7. Nc3 {[%clk 0:02:14.2]} 7... Rb8 {[%clk 0:02:44.6]} 8. Qd4
{[%clk 0:02:07.1]} 8... c5 {[%clk 0:02:30.9]} 9. Qa4 {[%clk 0:01:36.1]} 9...
Bxe5 {[%clk 0:02:10.6]} 10. Qxa7 {[%clk 0:01:26.7]} 10... Bxc3+ {[%clk
0:02:08.3]} 11. bxc3 {[%clk 0:01:25.7]} 11... Rb7 {[%clk 0:02:01.2]} 12. Qa8
{[%clk 0:01:25.6]} 12... Kd8 {[%clk 0:02:00.2]} 13. Bg5 {[%clk 0:01:00]} 13...
f6 {[%clk 0:01:59.9]} 14. Be3 {[%clk 0:00:59.5]} 14... Qe4 {[%clk 0:01:54.2]}
15. O-O {[%clk 0:00:52.3]} 15... Ne7 {[%clk 0:01:43.8]} 16. Bxc5 {[%clk
0:00:25]} 16... Nd5 {[%clk 0:01:43.3]} 17. Rfe1 {[%clk 0:00:07.2]} 17... Re8
{[%clk 0:01:26.8]} 18. Bd4 {[%clk 0:00:04.6]} 18... Re6 {[%clk 0:01:21.3]} 19.
a3 {[%clk 0:00:04.5]} 19... Nf4 {[%clk 0:01:17.4]} 20. Kf1 {[%clk 0:00:02.3]}
20... Qxc2 {[%clk 0:01:13.9]} 21. a4 {[%clk 0:00:02]} 21... Rxe2 {[%clk
0:01:13.8]} 22. Ng1 {[%clk 0:00:01.9]} 22... Rxe1+ {[%clk 0:01:12.2]} 23. Rxe1
{[%clk 0:00:02.8]} 23... Qd3+ {[%clk 0:01:12.4]} 24. Ne2 {[%clk 0:00:03.7]}
24... Qh3+ {[%clk 0:01:11.7]} 0-1

[Event "Early-Titled-Tuesday-Blitz-March-05-2024"]
[Site "Chess.com"]
[Date "2024.03.05"]
[Round "1"]
[White "NewYearGirl"]
[Black "Alonmindlin"]
[Result "0-1"]
[WhiteElo "2362"]
[BlackElo "2660"]
[TimeControl "180+1"]
[EndTime "8:05:55 PST"]
[Termination "Alonmindlin won by resignation"]

1. e4 {[%clk 0:03:00.9]} 1... g6 {[%clk 0:02:58.5]} 2. d4 {[%clk 0:03:00.6]}
2... Bg7 {[%clk 0:02:58.9]} 3. Nc3 {[%clk 0:03:01.1]} 3... d6 {[%clk 0:02:59.3]}
4. f4 {[%clk 0:03:01.4]} 4... Nf6 {[%clk 0:02:56.3]} 5. Nf3 {[%clk 0:03:01.8]}
5... O-O {[%clk 0:02:54.4]} 6. e5 {[%clk 0:03:02.4]} 6... dxe5 {[%clk
0:02:54.6]} 7. fxe5 {[%clk 0:03:02.4]} 7... Nd5 {[%clk 0:02:55.1]} 8. Bc4 {[%clk
0:03:03]} 8... Nxc3 {[%clk 0:02:50.8]} 9. bxc3 {[%clk 0:03:03.9]} 9... c5 {[%clk
0:02:48.3]} 10. O-O {[%clk 0:03:03.8]} 10... Nc6 {[%clk 0:02:48.8]} 11. Be3
{[%clk 0:03:03.4]} 11... cxd4 {[%clk 0:02:49]} 12. cxd4 {[%clk 0:03:02.6]} 12...
Bf5 {[%clk 0:02:47.5]} 13. c3 {[%clk 0:02:57]} 13... Rc8 {[%clk 0:02:47.3]} 14.
Bb3 {[%clk 0:02:48.4]} 14... Na5 {[%clk 0:02:47]} 15. Qd2 {[%clk 0:02:48]} 15...
Nc4 {[%clk 0:02:46.8]} 16. Qf2 {[%clk 0:02:39.8]} 16... b5 {[%clk 0:02:40.8]}
17. a4 {[%clk 0:02:25.5]} 17... a6 {[%clk 0:02:24.6]} 18. axb5 {[%clk
0:02:25.3]} 18... axb5 {[%clk 0:02:25.5]} 19. Ra7 {[%clk 0:02:22.8]} 19... Na5
{[%clk 0:02:23.5]} 20. Ba2 {[%clk 0:02:13.8]} 20... Rxc3 {[%clk 0:02:23.4]} 21.
Bd2 {[%clk 0:02:10.1]} 21... Nc6 {[%clk 0:02:22.4]} 22. Bxc3 {[%clk 0:02:03.4]}
22... Nxa7 {[%clk 0:02:22.6]} 23. Ng5 {[%clk 0:01:58.7]} 23... e6 {[%clk
0:02:18]} 24. d5 {[%clk 0:01:53.1]} 24... Qxg5 {[%clk 0:02:16.8]} 25. Qxa7
{[%clk 0:01:47.6]} 25... Be4 {[%clk 0:02:16.3]} 26. g3 {[%clk 0:01:30.4]} 26...
Bxd5 {[%clk 0:02:10.5]} 27. Bxd5 {[%clk 0:01:29.9]} 27... exd5 {[%clk
0:02:11.4]} 28. Bb4 {[%clk 0:01:30.4]} 28... Rc8 {[%clk 0:01:55.5]} 29. Qxf7+
{[%clk 0:00:59.4]} 29... Kh8 {[%clk 0:01:55.1]} 30. e6 {[%clk 0:00:44.5]} 30...
Qe3+ {[%clk 0:01:55.2]} 31. Rf2 {[%clk 0:00:44.8]} 31... Bd4 {[%clk 0:01:54.7]}
32. e7 {[%clk 0:00:35.2]} 32... Qxf2+ {[%clk 0:01:53.9]} 33. Qxf2 {[%clk
0:00:34.7]} 33... Bxf2+ {[%clk 0:01:54.8]} 34. Kxf2 {[%clk 0:00:34.9]} 34... Kg7
{[%clk 0:01:54.4]} 35. Ke3 {[%clk 0:00:20.4]} 35... Kf7 {[%clk 0:01:54.2]} 36.
Bd6 {[%clk 0:00:17.7]} 36... Rc6 {[%clk 0:01:49.3]} 37. Bb4 {[%clk 0:00:14.9]}
37... Re6+ {[%clk 0:01:47.9]} 38. Kd4 {[%clk 0:00:14.7]} 38... Re4+ {[%clk
0:01:48.1]} 39. Kc5 {[%clk 0:00:14.3]} 39... Rxb4 {[%clk 0:01:48.3]} 40. Kxb4
{[%clk 0:00:14.3]} 40... d4 {[%clk 0:01:48.7]} 41. Kc5 {[%clk 0:00:11.2]} 41...
d3 {[%clk 0:01:48.9]} 42. Kd6 {[%clk 0:00:11.8]} 42... Ke8 {[%clk 0:01:49.3]}
0-1

[Event "Early-Titled-Tuesday-Blitz-March-05-2024"]
[Site "Chess.com"]
[Date "2024.03.05"]
[Round "1"]
[White "mortngabriel"]
[Black "MagnusCarlsen"]
[Result "0-1"]
[WhiteElo "2527"]
[BlackElo "3276"]
[TimeControl "180+1"]
[EndTime "8:05:56 PST"]
[Termination "MagnusCarlsen won by resignation"]

1. d4 {[%clk 0:03:00.9]} 1... b5 {[%clk 0:02:54.6]} 2. Nf3 {[%clk 0:02:57.6]}
2... Bb7 {[%clk 0:02:53.5]} 3. e3 {[%clk 0:02:55.8]} 3... a6 {[%clk 0:02:52.9]}
4. a4 {[%clk 0:02:55.5]} 4... b4 {[%clk 0:02:53]} 5. c4 {[%clk 0:02:53.3]} 5...
e6 {[%clk 0:02:50.8]} 6. b3 {[%clk 0:02:51.4]} 6... Nf6 {[%clk 0:02:50.7]} 7.
Bb2 {[%clk 0:02:50.9]} 7... g6 {[%clk 0:02:45.1]} 8. Nbd2 {[%clk 0:02:51.2]}
8... a5 {[%clk 0:02:41.8]} 9. Bd3 {[%clk 0:02:48.1]} 9... Bg7 {[%clk 0:02:41.1]}
10. O-O {[%clk 0:02:47]} 10... O-O {[%clk 0:02:39.2]} 11. e4 {[%clk 0:02:26.2]}
11... d6 {[%clk 0:02:37.3]} 12. Re1 {[%clk 0:02:15.7]} 12... Nfd7 {[%clk
0:02:36.6]} 13. Rb1 {[%clk 0:02:08.2]} 13... Na6 {[%clk 0:02:32.3]} 14. Nf1
{[%clk 0:01:59.7]} 14... e5 {[%clk 0:02:31.3]} 15. dxe5 {[%clk 0:01:55.3]} 15...
dxe5 {[%clk 0:02:20.6]} 16. Ne3 {[%clk 0:01:45]} 16... Ndc5 {[%clk 0:02:17.3]}
17. Bc2 {[%clk 0:01:24.7]} 17... Re8 {[%clk 0:02:16.4]} 18. Qxd8 {[%clk
0:01:06.5]} 18... Raxd8 {[%clk 0:02:15.5]} 19. Nd5 {[%clk 0:01:04.9]} 19... c6
{[%clk 0:02:12.4]} 20. Ne3 {[%clk 0:01:04.2]} 20... Nd3 {[%clk 0:02:08.1]} 21.
Bxd3 {[%clk 0:00:57.8]} 21... Rxd3 {[%clk 0:02:09]} 22. Ba1 {[%clk 0:00:56.5]}
22... Nc5 {[%clk 0:02:08.4]} 23. Red1 {[%clk 0:00:29.4]} 23... Rxb3 {[%clk
0:02:06.5]} 24. Rxb3 {[%clk 0:00:23.2]} 24... Nxb3 {[%clk 0:02:05.2]} 25. c5
{[%clk 0:00:20.4]} 25... Ba6 {[%clk 0:01:59.2]} 26. Bb2 {[%clk 0:00:16]} 26...
f6 {[%clk 0:01:55.7]} 27. Rd7 {[%clk 0:00:15.3]} 27... Nxc5 {[%clk 0:01:55.2]}
28. Ra7 {[%clk 0:00:14.6]} 28... Rd8 {[%clk 0:01:49]} 29. h4 {[%clk 0:00:14.1]}
29... h5 {[%clk 0:01:46.9]} 30. g4 {[%clk 0:00:12.9]} 30... Be2 {[%clk
0:01:46.6]} 31. Kg2 {[%clk 0:00:11.5]} 31... Nxa4 {[%clk 0:01:46.5]} 32. Ba1
{[%clk 0:00:06.2]} 32... hxg4 {[%clk 0:01:44.7]} 33. Nxg4 {[%clk 0:00:05.9]}
33... b3 {[%clk 0:01:45.1]} 34. Rxa5 {[%clk 0:00:05.5]} 34... b2 {[%clk
0:01:45.1]} 35. Bxb2 {[%clk 0:00:06]} 35... Nxb2 {[%clk 0:01:45.9]} 36. h5
{[%clk 0:00:05.9]} 36... gxh5 {[%clk 0:01:44]} 37. Ne3 {[%clk 0:00:05.5]} 37...
Nc4 {[%clk 0:01:43.9]} 38. Nxc4 {[%clk 0:00:04.4]} 38... Bxc4 {[%clk 0:01:43.9]}
39. Ra7 {[%clk 0:00:05.3]} 39... Bd3 {[%clk 0:01:42.7]} 0-1

[Event "Early-Titled-Tuesday-Blitz-March-05-2024"]
[Site "Chess.com"]
[Date "2024.03.05"]
[Round "1"]
[White "MFatigue"]
[Black "KuzubovYuriy"]
[Result "0-1"]
[WhiteElo "2510"]
[BlackElo "2981"]
[TimeControl "180+1"]
[EndTime "8:05:57 PST"]
[Termination "KuzubovYuriy won by resignation"]

1. e4 {[%clk 0:03:00.9]} 1... e6 {[%clk 0:02:55.2]} 2. d4 {[%clk 0:03:00.8]}
2... d5 {[%clk 0:02:55.8]} 3. Nc3 {[%clk 0:03:01.1]} 3... Bb4 {[%clk 0:02:55.2]}
4. e5 {[%clk 0:03:01.3]} 4... Ne7 {[%clk 0:02:55.5]} 5. a3 {[%clk 0:03:01.6]}
5... Bxc3+ {[%clk 0:02:55.8]} 6. bxc3 {[%clk 0:03:02.5]} 6... b6 {[%clk
0:02:56.3]} 7. Nf3 {[%clk 0:02:57.3]} 7... Qd7 {[%clk 0:02:50.5]} 8. Bd3 {[%clk
0:02:56.8]} 8... Ba6 {[%clk 0:02:49.5]} 9. O-O {[%clk 0:02:56.9]} 9... Bxd3
{[%clk 0:02:47.3]} 10. Qxd3 {[%clk 0:02:57.5]} 10... Nbc6 {[%clk 0:02:46.5]} 11.
c4 {[%clk 0:02:56.1]} 11... Na5 {[%clk 0:02:40.6]} 12. cxd5 {[%clk 0:02:52.4]}
12... Qxd5 {[%clk 0:02:41.4]} 13. a4 {[%clk 0:02:36.2]} 13... Nec6 {[%clk
0:02:32.7]} 14. c3 {[%clk 0:02:24.6]} 14... Nc4 {[%clk 0:02:23.5]} 15. Bf4
{[%clk 0:02:03.4]} 15... h6 {[%clk 0:02:18.8]} 16. Bg3 {[%clk 0:02:01.3]} 16...
N6a5 {[%clk 0:02:13.4]} 17. Rfd1 {[%clk 0:02:00.9]} 17... Nb2 {[%clk 0:02:11]}
18. Qc2 {[%clk 0:01:56.6]} 18... Nxd1 {[%clk 0:02:10.4]} 19. Rxd1 {[%clk
0:01:57.5]} 19... Qb3 {[%clk 0:02:08.5]} 20. Qxb3 {[%clk 0:01:48]} 20... Nxb3
{[%clk 0:02:08.3]} 21. c4 {[%clk 0:01:48.9]} 21... O-O-O {[%clk 0:02:01.9]} 22.
d5 {[%clk 0:01:48.9]} 22... Na5 {[%clk 0:01:59.5]} 23. Rd4 {[%clk 0:01:48.2]}
23... c5 {[%clk 0:01:54]} 24. Rd1 {[%clk 0:01:44.6]} 24... Nxc4 {[%clk 0:01:53]}
25. d6 {[%clk 0:01:45.2]} 25... Kd7 {[%clk 0:01:51.8]} 26. Rc1 {[%clk
0:01:41.3]} 26... Na5 {[%clk 0:01:50.9]} 27. h4 {[%clk 0:01:38.2]} 27... Rc8
{[%clk 0:01:49.4]} 28. Nd2 {[%clk 0:01:36.9]} 28... c4 {[%clk 0:01:44.6]} 29.
Ne4 {[%clk 0:01:35.1]} 29... Nb3 {[%clk 0:01:44.4]} 30. Rc3 {[%clk 0:01:33.5]}
30... Nd4 {[%clk 0:01:40.9]} 31. Kf1 {[%clk 0:01:33.4]} 31... a6 {[%clk
0:01:38.8]} 32. f4 {[%clk 0:01:29.8]} 32... b5 {[%clk 0:01:36.6]} 33. Bf2 {[%clk
0:01:30.1]} 33... Nb3 {[%clk 0:01:35.1]} 34. Ke2 {[%clk 0:01:20]} 34... b4
{[%clk 0:01:32]} 35. Rc2 {[%clk 0:01:20.4]} 35... Rc6 {[%clk 0:01:29.7]} 36. g4
{[%clk 0:01:00]} 36... c3 {[%clk 0:01:28.1]} 37. Kd3 {[%clk 0:00:54]} 37... Rhc8
{[%clk 0:01:26.4]} 38. Be1 {[%clk 0:00:35.5]} 38... Nc5+ {[%clk 0:01:23.9]} 39.
Nxc5+ {[%clk 0:00:35]} 39... Rxc5 {[%clk 0:01:24.8]} 40. h5 {[%clk 0:00:27.3]}
40... f6 {[%clk 0:01:22]} 41. exf6 {[%clk 0:00:25]} 41... gxf6 {[%clk
0:01:22.1]} 42. Bh4 {[%clk 0:00:25.9]} 42... b3 {[%clk 0:01:22.1]} 0-1

[Event "Early-Titled-Tuesday-Blitz-March-05-2024"]
[Site "Chess.com"]
[Date "2024.03.05"]
[Round "1"]
[White "ChessRespected"]
[Black "Willi_Skibbe"]
[Result "1-0"]
[WhiteElo "2619"]
[BlackElo "2317"]
[TimeControl "180+1"]
[EndTime "8:05:58 PST"]
[Termination "ChessRespected won by resignation"]

1. d4 {[%clk 0:03:00.9]} 1... d5 {[%clk 0:02:53.6]} 2. Nf3 {[%clk 0:03:01.1]}
2... Nf6 {[%clk 0:02:49.4]} 3. e3 {[%clk 0:03:01.2]} 3... e6 {[%clk 0:02:45.6]}
4. Bd3 {[%clk 0:02:59.8]} 4... b6 {[%clk 0:02:44.1]} 5. O-O {[%clk 0:02:57.8]}
5... Bb7 {[%clk 0:02:44.7]} 6. Nbd2 {[%clk 0:02:58]} 6... Bd6 {[%clk 0:02:43.9]}
7. b3 {[%clk 0:02:54.8]} 7... Ne4 {[%clk 0:02:38.4]} 8. Bb2 {[%clk 0:02:52.3]}
8... Nd7 {[%clk 0:02:38.3]} 9. Ne5 {[%clk 0:02:52.1]} 9... Nxd2 {[%clk
0:02:02.5]} 10. Qxd2 {[%clk 0:02:50.4]} 10... f6 {[%clk 0:02:01.8]} 11. Nxd7
{[%clk 0:02:32.5]} 11... Qxd7 {[%clk 0:02:02.7]} 12. c4 {[%clk 0:02:32.2]} 12...
O-O {[%clk 0:01:50.5]} 13. Rac1 {[%clk 0:02:32.3]} 13... f5 {[%clk 0:01:30.4]}
14. c5 {[%clk 0:02:25.5]} 14... Be7 {[%clk 0:01:27.4]} 15. b4 {[%clk 0:02:25.2]}
15... b5 {[%clk 0:01:20.3]} 16. c6 {[%clk 0:02:21.6]} 16... Bxc6 {[%clk
0:01:20.2]} 17. Qc2 {[%clk 0:02:21.9]} 17... Bb7 {[%clk 0:01:16.9]} 18. Qxc7
{[%clk 0:02:22.8]} 18... Rfd8 {[%clk 0:01:13.4]} 19. Bxb5 {[%clk 0:02:12.3]}
19... Qxb5 {[%clk 0:00:58.8]} 20. Qxe7 {[%clk 0:02:11]} 20... Qd7 {[%clk
0:00:57.4]} 21. Rc7 {[%clk 0:02:08.8]} 21... Qxe7 {[%clk 0:00:54.1]} 22. Rxe7
{[%clk 0:02:09.7]} 22... Ba6 {[%clk 0:00:54.7]} 23. Rc1 {[%clk 0:02:07.8]} 23...
Re8 {[%clk 0:00:50.2]} 24. Rxe8+ {[%clk 0:02:01]} 24... Rxe8 {[%clk 0:00:51.1]}
25. Rc7 {[%clk 0:02:01]} 25... Ra8 {[%clk 0:00:34.3]} 26. f3 {[%clk 0:01:55.2]}
26... Bc4 {[%clk 0:00:30.9]} 27. a4 {[%clk 0:01:55.2]} 27... Rb8 {[%clk
0:00:28]} 28. Bc3 {[%clk 0:01:33.2]} 28... Kf8 {[%clk 0:00:20.2]} 29. Rxa7
{[%clk 0:01:30.4]} 29... Bb3 {[%clk 0:00:17.4]} 30. b5 {[%clk 0:01:27.9]} 30...
Rc8 {[%clk 0:00:17.5]} 31. Bb4+ {[%clk 0:01:28.2]} 31... Kg8 {[%clk 0:00:16.8]}
32. Bc5 {[%clk 0:01:29.1]} 32... Rb8 {[%clk 0:00:15.7]} 33. h4 {[%clk
0:01:27.7]} 33... h6 {[%clk 0:00:14.8]} 34. h5 {[%clk 0:01:26.9]} 34... Bc4
{[%clk 0:00:13.6]} 35. Bd6 {[%clk 0:01:25.6]} 35... Rc8 {[%clk 0:00:14.1]} 36.
Be5 {[%clk 0:01:25.8]} 1-0

[Event "Early-Titled-Tuesday-Blitz-March-05-2024"]
[Site "Chess.com"]
[Date "2024.03.05"]
[Round "1"]
[White "ozates"]
[Black "kyuotbi"]
[Result "1-0"]
[WhiteElo "2614"]
[BlackElo "2311"]
[TimeControl "180+1"]
[EndTime "8:05:58 PST"]
[Termination "ozates won by checkmate"]

1. e4 {[%clk 0:02:56.8]} 1... e5 {[%clk 0:02:59]} 2. Nc3 {[%clk 0:02:55.5]} 2...
Nf6 {[%clk 0:02:53]} 3. d4 {[%clk 0:02:55.4]} 3... exd4 {[%clk 0:02:45.5]} 4.
Qxd4 {[%clk 0:02:56.3]} 4... Nc6 {[%clk 0:02:44.8]} 5. Qd3 {[%clk 0:02:51.8]}
5... Bb4 {[%clk 0:02:37.4]} 6. Bd2 {[%clk 0:02:49.8]} 6... Qe7 {[%clk
0:02:34.4]} 7. O-O-O {[%clk 0:02:48.2]} 7... O-O {[%clk 0:02:30.8]} 8. Re1
{[%clk 0:02:42.2]} 8... Ne5 {[%clk 0:02:25.3]} 9. Qg3 {[%clk 0:02:40.6]} 9... d6
{[%clk 0:02:05.8]} 10. f4 {[%clk 0:02:38.9]} 10... Ng6 {[%clk 0:02:01]} 11. e5
{[%clk 0:02:38]} 11... Bxc3 {[%clk 0:01:52.6]} 12. Bxc3 {[%clk 0:02:37.1]} 12...
Nh5 {[%clk 0:01:51.3]} 13. Qf3 {[%clk 0:02:36.4]} 13... Nhxf4 {[%clk 0:01:45.8]}
14. exd6 {[%clk 0:02:25]} 14... Qxd6 {[%clk 0:01:44.8]} 15. Bc4 {[%clk
0:02:25.6]} 15... Be6 {[%clk 0:01:41.8]} 16. Bxe6 {[%clk 0:02:21.4]} 16... Nxe6
{[%clk 0:01:41.9]} 17. Nh3 {[%clk 0:02:20.6]} 17... b5 {[%clk 0:01:37.9]} 18.
Rd1 {[%clk 0:02:17]} 18... Qb6 {[%clk 0:01:37.3]} 19. Rhf1 {[%clk 0:02:13.1]}
19... b4 {[%clk 0:01:32.7]} 20. Be1 {[%clk 0:02:05.8]} 20... c5 {[%clk
0:01:30.2]} 21. Bg3 {[%clk 0:02:02.7]} 21... Qa6 {[%clk 0:01:29]} 22. Kb1 {[%clk
0:02:00]} 22... Nd4 {[%clk 0:01:27.7]} 23. Qd5 {[%clk 0:01:58.9]} 23... Rad8
{[%clk 0:01:24.7]} 24. Qxc5 {[%clk 0:01:58.1]} 24... Ne2 {[%clk 0:01:07.1]} 25.
Ng5 {[%clk 0:01:33.2]} 25... Rc8 {[%clk 0:00:57.5]} 26. Qd5 {[%clk 0:01:30.1]}
26... Nxg3 {[%clk 0:00:40]} 27. Rxf7 {[%clk 0:01:27.3]} 27... Rxf7 {[%clk
0:00:21.5]} 28. Nxf7 {[%clk 0:01:26.4]} 28... Qc4 {[%clk 0:00:16.1]} 29. Nh6+
{[%clk 0:01:16.4]} 29... Kh8 {[%clk 0:00:16.1]} 30. Qxc4 {[%clk 0:01:14.4]}
30... Rxc4 {[%clk 0:00:16.8]} 31. Rd8+ {[%clk 0:01:14.4]} 31... Nf8 {[%clk
0:00:16.9]} 32. Rxf8# {[%clk 0:01:14.5]} 1-0

[Event "Early-Titled-Tuesday-Blitz-March-05-2024"]
[Site "Chess.com"]
[Date "2024.03.05"]
[Round "1"]
[White "Genghis_K"]
[Black "Road2GM3000"]
[Result "1-0"]
[WhiteElo "2947"]
[BlackElo "2503"]
[TimeControl "180+1"]
[EndTime "8:06:01 PST"]
[Termination "Genghis_K won by checkmate"]

1. e4 {[%clk 0:03:00.9]} 1... c5 {[%clk 0:02:59.7]} 2. Nf3 {[%clk 0:03:00.6]}
2... d6 {[%clk 0:03:00.2]} 3. Bb5+ {[%clk 0:03:00.1]} 3... Bd7 {[%clk 0:03:00]}
4. Bxd7+ {[%clk 0:02:59.4]} 4... Nxd7 {[%clk 0:03:00.9]} 5. O-O {[%clk
0:02:58.8]} 5... Ngf6 {[%clk 0:03:00.3]} 6. Qe2 {[%clk 0:02:57.2]} 6... e6
{[%clk 0:03:00.1]} 7. b3 {[%clk 0:02:54.1]} 7... Be7 {[%clk 0:02:59.2]} 8. Bb2
{[%clk 0:02:54.7]} 8... O-O {[%clk 0:02:58.7]} 9. d4 {[%clk 0:02:54.7]} 9...
cxd4 {[%clk 0:02:57.7]} 10. Nxd4 {[%clk 0:02:55.4]} 10... Rc8 {[%clk 0:02:55.9]}
11. c4 {[%clk 0:02:55.8]} 11... a6 {[%clk 0:02:53.1]} 12. Nc3 {[%clk 0:02:55.8]}
12... Qa5 {[%clk 0:02:49.3]} 13. f4 {[%clk 0:02:31.6]} 13... Rfd8 {[%clk
0:02:41.4]} 14. Nf3 {[%clk 0:02:29.2]} 14... Qc5+ {[%clk 0:02:22.8]} 15. Kh1
{[%clk 0:02:28.5]} 15... Nb8 {[%clk 0:02:06.4]} 16. Na4 {[%clk 0:02:22.4]} 16...
Qa5 {[%clk 0:01:46.5]} 17. Bd4 {[%clk 0:02:00.8]} 17... Nbd7 {[%clk 0:01:40.3]}
18. e5 {[%clk 0:02:00.1]} 18... Ne8 {[%clk 0:01:35.6]} 19. Qe3 {[%clk
0:01:55.6]} 19... Nc5 {[%clk 0:01:03.6]} 20. Nxc5 {[%clk 0:01:38.6]} 20... dxc5
{[%clk 0:01:03.1]} 21. Bc3 {[%clk 0:01:39.2]} 21... Qc7 {[%clk 0:00:59.7]} 22.
f5 {[%clk 0:01:36.7]} 22... exf5 {[%clk 0:00:51.4]} 23. e6 {[%clk 0:01:37.6]}
23... Bf6 {[%clk 0:00:45]} 24. Bxf6 {[%clk 0:01:30.7]} 24... Nxf6 {[%clk
0:00:45]} 25. Ng5 {[%clk 0:01:31.1]} 25... fxe6 {[%clk 0:00:38.6]} 26. Qxe6+
{[%clk 0:01:29.1]} 26... Kf8 {[%clk 0:00:34.5]} 27. Rxf5 {[%clk 0:01:22.9]}
27... Qe7 {[%clk 0:00:08.2]} 28. Nxh7+ {[%clk 0:01:08.5]} 28... Ke8 {[%clk
0:00:08.4]} 29. Rxf6 {[%clk 0:01:08.4]} 29... gxf6 {[%clk 0:00:07.4]} 30. Nxf6+
{[%clk 0:01:08.2]} 30... Kf8 {[%clk 0:00:07.2]} 31. Qg8# {[%clk 0:01:09]} 1-0